bitfinex-derivatives/quotes_BTCF0:USTF0_20241210
["timestamp","ask_amount","ask_price","bid_price","bid_amount"]
[1733841624733,6e-05,97266.0,97265.0,0.00010687]
[1733841624955,0.23385686,97275.0,97265.0,0.00010687]
[1733841625148,0.23385686,97275.0,97274.0,0.051372]
[1733841625434,0.23385686,97284.0,97283.0,0.051368]
[1733841625635,0.3608,97289.0,97277.0,0.051371]
[1733841625836,0.23385686,97284.0,97283.0,0.00095999]
[1733841626046,0.3608,97289.0,97284.0,0.051367]
[1733841626336,0.3608,97289.0,97288.0,0.00095999]
[1733841626537,0.3608,97289.0,97288.0,0.05232499]
[1733841627645,0.3608,97289.0,97288.0,0.05432499]
[1733841627940,0.3608,97289.0,97288.0,0.00295999]
[1733841628131,0.3608,97289.0,97288.0,0.00395999]
[1733841629129,0.3608,97289.0,97288.0,0.00195999]
[1733841629333,0.3608,97289.0,97288.0,0.00395999]
[1733841630131,0.3608,97289.0,97288.0,0.00295999]
[1733841630338,0.412165,97289.0,97288.0,0.00295999]
[1733841630533,0.412165,97289.0,97288.0,0.00095999]
[1733841630744,0.416165,97289.0,97288.0,0.00095999]
[1733841631140,0.3658,97289.0,97288.0,0.00095999]
[1733841631543,0.38114976,97289.0,97288.0,0.00095999]
[1733841632340,0.3658,97289.0,97288.0,0.00095999]
[1733841632942,0.3608,97289.0,97288.0,0.00095999]
[1733841633147,0.3648,97289.0,97288.0,0.00095999]
[1733841633743,0.3658,97289.0,97288.0,0.00095999]
[1733841634144,0.005,97289.0,97288.0,0.00095999]
[1733841634346,0.00010608,97301.0,97288.0,0.00095999]
[1733841634538,0.00010608,97301.0,97300.0,0.051359]
[1733841634846,0.00010608,97301.0,97300.0,0.05231899]
[1733841635352,0.3608,97327.0,97312.0,0.051352]
[1733841635658,0.23385686,97330.0,97329.0,0.051343]
[1733841635943,0.3608,97335.0,97334.0,0.051341]
[1733841636147,0.3609014,97335.0,97334.0,0.051341]
[1733841636342,0.3609014,97335.0,97334.0,0.051401]
[1733841637149,0.3609014,97335.0,97334.0,0.054401]
[1733841637350,0.3609014,97335.0,97334.0,0.055401]
[1733841637649,0.3609014,97335.0,97334.0,0.052401]
[1733841637851,0.3609014,97335.0,97334.0,0.055401]
[1733841638240,0.0001014,97335.0,97334.0,0.055401]
[1733841638840,0.0001014,97335.0,97334.0,0.00406]
[1733841639453,0.0001014,97335.0,97334.0,0.00306]
[1733841639952,0.0001014,97335.0,97334.0,0.00106]
[1733841640144,0.0001014,97335.0,97334.0,0.00406]
[1733841640854,0.0001014,97335.0,97334.0,0.00306]
[1733841641242,0.0001014,97335.0,97334.0,6e-05]
[1733841641443,0.0001014,97335.0,97334.0,0.00206]
[1733841641650,0.0001014,97335.0,97296.0,0.051361]
[1733841641949,0.59465686,97320.0,97319.0,0.051349]
[1733841642148,0.7216,97320.0,97319.0,0.051349]
[1733841642455,0.7216,97320.0,97313.0,0.051352]
[1733841642755,6e-05,97314.0,97305.0,0.051356]
[1733841642952,0.3608,97308.0,97306.0,0.051356]
[1733841643353,0.3608,97320.0,97319.0,0.051349]
[1733841643855,0.3608,97320.0,97319.0,6e-05]
[1733841644656,0.3618,97320.0,97319.0,6e-05]
[1733841645254,0.3608,97320.0,97319.0,6e-05]
[1733841645552,0.0021014,97335.0,97332.0,0.051342]
[1733841645753,0.3608,97361.0,97356.0,0.051329]
[1733841646054,0.3608,97361.0,97360.0,0.051387]
[1733841646252,0.3608,97361.0,97360.0,6e-05]
[1733841646652,0.3608,97361.0,97360.0,0.051387]
[1733841646850,0.00012295,97361.0,97360.0,0.412187]
[1733841647043,0.48249118,97388.0,97360.0,0.36086]
[1733841647044,0.02027898,97383.0,97360.0,0.36086]
[1733841647247,0.37489474,97388.0,97386.0,0.051313]
[1733841647248,0.3608,97388.0,97386.0,0.051313]
[1733841647656,0.1,97400.0,97398.0,0.051307]
[1733841648051,0.1,97400.0,97399.0,6e-05]
[1733841648251,0.10007444,97400.0,97399.0,6e-05]
[1733841649066,0.40007444,97400.0,97387.0,6e-05]
[1733841649246,0.051316,97381.0,97367.0,0.051323]
[1733841649558,0.3608,97368.0,97341.0,0.051337]
[1733841649748,0.3608,97368.0,97333.0,0.3608]
[1733841649946,9.441e-05,97380.0,97333.0,0.3608]
[1733841649947,0.3608,97342.0,97341.0,0.051337]
[1733841650449,0.051339,97338.0,97329.0,0.051343]
[1733841650650,0.051339,97338.0,97322.0,0.0853]
[1733841650651,0.41226103,97338.0,97322.0,0.0853]
[1733841650851,0.41232103,97338.0,97322.0,0.0853]
[1733841651154,0.36098203,97338.0,97322.0,0.0853]
[1733841651751,0.36098203,97338.0,97327.0,0.051344]
[1733841652056,0.41232103,97338.0,97330.0,0.051343]
[1733841652456,0.36098203,97338.0,97336.0,0.051339]
[1733841652859,0.36098203,97338.0,97332.0,0.051341]
[1733841653052,0.41232103,97338.0,97322.0,0.0853]
[1733841653251,0.051342,97332.0,97322.0,0.08041686]
[1733841653453,0.3608,97323.0,97322.0,0.08041686]
[1733841653764,0.36086,97323.0,97316.0,0.05135]
[1733841653951,0.3608,97321.0,97289.0,0.143064]
[1733841654146,6e-05,97317.0,97301.0,0.3608]
[1733841654456,0.3608,97321.0,97319.0,0.051349]
[1733841654651,0.3608,97327.0,97316.0,0.05135]
[1733841654855,0.3608,97327.0,97326.0,0.051345]
[1733841656463,0.3608,97327.0,97320.0,6e-05]
[1733841656464,0.412145,97327.0,97320.0,6e-05]
[1733841656664,0.412145,97327.0,97320.0,0.051408]
[1733841656852,6e-05,97321.0,97320.0,0.051408]
[1733841657567,6e-05,97321.0,97320.0,0.053408]
[1733841658463,6e-05,97321.0,97320.0,0.054408]
[1733841658665,6e-05,97321.0,97320.0,0.052408]
[1733841658854,6e-05,97321.0,97320.0,0.054408]
[1733841659055,0.3608,97329.0,97320.0,0.054408]
[1733841659056,0.23385686,97330.0,97329.0,0.051343]
[1733841659254,0.23385686,97330.0,97320.0,0.054408]
[1733841659255,0.3608,97337.0,97336.0,0.05134]
[1733841659759,0.3608,97337.0,97336.0,0.0514]
[1733841661366,3e-08,97338.0,97336.0,0.0514]
[1733841661667,3e-08,97338.0,97337.0,0.36086]
[1733841661970,3e-08,97338.0,97337.0,0.45176]
[1733841662157,3e-08,97338.0,97337.0,0.54106]
[1733841662359,0.23385686,97370.0,97364.0,0.051325]
[1733841662662,0.3608,97374.0,97365.0,6e-05]
[1733841662861,0.23385686,97380.0,97379.0,0.051317]
[1733841663166,0.32512525,97390.0,97388.0,0.051312]
[1733841663368,0.3608,97395.0,97381.0,0.051316]
[1733841663369,0.00010952,97389.0,97381.0,0.051316]
[1733841663569,0.00010952,97389.0,97388.0,0.051312]
[1733841663768,5.2e-07,97389.0,97388.0,0.051312]
[1733841664659,0.3608,97413.0,97388.0,0.051312]
[1733841664660,5.2e-07,97400.0,97388.0,0.051312]
[1733841664861,0.02099389,97418.0,97388.0,0.051312]
[1733841664862,0.02099389,97418.0,97399.0,0.3608]
[1733841665063,0.09126839,97439.0,97417.0,0.3608]
[1733841665263,0.09126839,97448.0,97434.0,0.3608]
[1733841665558,0.23385686,97450.0,97438.0,6e-05]
[1733841665760,0.3608,97442.0,97438.0,6e-05]
[1733841666070,0.23385686,97448.0,97433.0,0.3608]
[1733841666071,0.23385686,97448.0,97447.0,0.051281]
[1733841666259,0.00011192,97449.0,97447.0,0.051281]
[1733841666564,0.36091192,97449.0,97427.0,0.00153967]
[1733841666754,0.051285,97440.0,97431.0,0.051289]
[1733841666961,0.02504769,97442.0,97439.0,0.051285]
[1733841667263,0.23385686,97443.0,97435.0,0.3608]
[1733841667471,0.23385686,97443.0,97442.0,0.051284]
[1733841667659,0.00911192,97449.0,97442.0,0.051284]
[1733841667863,0.00911192,97449.0,97448.0,0.412081]
[1733841668073,0.23385686,97490.0,97472.0,0.051268]
[1733841668265,0.24791468,97490.0,97489.0,0.051259]
[1733841668465,0.24791468,97490.0,97477.0,0.3608]
[1733841668466,0.05248576,97490.0,97477.0,0.3608]
[1733841668663,0.05248576,97490.0,97466.0,0.3608]
[1733841668664,0.59465686,97487.0,97468.0,0.05127]
[1733841668863,0.01405782,97490.0,97443.0,0.4493]
[1733841668864,0.3608,97469.0,97443.0,0.4493]
[1733841669075,0.23385686,97453.0,97442.0,0.051284]
[1733841669369,0.00012,97444.0,97442.0,0.051284]
[1733841669561,0.23385686,97453.0,97442.0,0.051284]
[1733841669757,0.23385686,97453.0,97452.0,0.051279]
[1733841669963,0.23385686,97462.0,97461.0,0.051274]
[1733841670163,0.00012449,97468.0,97452.0,0.051338]
[1733841670164,0.051272,97465.0,97452.0,0.051338]
[1733841670476,0.3608,97461.0,97448.0,0.002]
[1733841670768,0.3608,97461.0,97448.0,0.0018491]
[1733841670976,1.04,97460.0,97448.0,0.0018491]
[1733841671271,0.3608,97453.0,97448.0,0.0008491]
[1733841671474,0.3608,97449.0,97448.0,0.0008491]
[1733841671767,0.051283,97443.0,97442.0,0.001]
[1733841671970,0.3608,97443.0,97442.0,0.001]
[1733841672174,0.00012,97443.0,97442.0,0.001]
[1733841672971,0.36092,97443.0,97442.0,0.001]
[1733841673478,0.00012,97443.0,97442.0,0.001]
[1733841673665,0.00012,97443.0,97441.0,0.051284]
[1733841673972,0.00012,97442.0,97441.0,0.051284]
[1733841674373,0.00012258,97448.0,97447.0,0.051281]
[1733841674565,5.8e-07,97449.0,97447.0,0.051281]
[1733841674763,0.23385686,97470.0,97450.0,0.05128]
[1733841674963,0.23385686,97470.0,97468.0,0.05127]
[1733841675169,0.02080819,97475.0,97470.0,0.051269]
[1733841675473,0.3608,97485.0,97479.0,0.051264]
[1733841675680,0.02312059,97484.0,97483.0,0.051262]
[1733841675878,9.23e-05,97484.0,97483.0,0.412062]
[1733841677176,3e-07,97484.0,97483.0,0.412062]
[1733841677875,3e-07,97484.0,97483.0,0.413062]
[1733841678375,3e-07,97484.0,97483.0,0.002]
[1733841678376,0.0582623,97484.0,97483.0,0.002]
[1733841678573,0.4190623,97484.0,97483.0,0.002]
[1733841678968,0.4190623,97484.0,97469.0,6e-05]
[1733841678969,0.051269,97470.0,97469.0,6e-05]
[1733841679281,0.00012,97470.0,97469.0,6e-05]
[1733841679668,0.00012,97470.0,97469.0,0.05133]
[1733841679876,0.00012,97470.0,97469.0,0.41213]
[1733841680766,0.00012,97470.0,97469.0,6e-05]
[1733841681377,0.00212,97470.0,97469.0,6e-05]
[1733841681576,0.00212,97470.0,97469.0,0.36086]
[1733841682974,3e-07,97484.0,97483.0,0.051262]
[1733841683176,3e-07,97484.0,97483.0,0.412062]
[1733841684473,0.1,97500.0,97483.0,0.712062]
[1733841684681,0.59465686,97530.0,97529.0,0.051238]
[1733841684865,0.36132001,97530.0,97529.0,0.051238]
[1733841685070,0.38134,97541.0,97540.0,0.051232]
[1733841685472,0.38146325,97541.0,97540.0,0.051292]
[1733841685669,0.36092325,97541.0,97540.0,0.051292]
[1733841686077,0.00012325,97541.0,97540.0,0.051292]
[1733841686470,0.00012325,97541.0,97540.0,0.412092]
[1733841686876,0.00012325,97541.0,97540.0,0.411272]
[1733841687273,0.412017,97569.0,97562.0,0.05122]
[1733841687479,0.3608,97569.0,97562.0,0.05122]
[1733841687686,0.3608,97569.0,97564.0,0.05122]
[1733841687687,0.01207645,97568.0,97564.0,0.05122]
[1733841687877,0.23385686,97570.0,97568.0,6e-05]
[1733841688179,0.02040075,97579.0,97578.0,0.051212]
[1733841688381,0.02053234,97579.0,97569.0,0.36086]
[1733841688580,0.2543892,97579.0,97578.0,6e-05]
[1733841688790,0.00013159,97579.0,97578.0,6e-05]
[1733841690175,0.30013159,97579.0,97578.0,6e-05]
[1733841690382,0.051217,97569.0,97568.0,0.00887619]
[1733841690681,0.36088344,97569.0,97568.0,0.00887619]
[1733841691083,0.051223,97559.0,97546.0,0.051229]
[1733841691277,0.3608,97550.0,97525.0,0.3608]
[1733841691473,0.23397686,97547.0,97525.0,0.3608]
[1733841691674,0.23397686,97547.0,97541.0,0.051232]
[1733841692075,0.23397686,97547.0,97525.0,0.3608]
[1733841692278,0.23397686,97547.0,97546.0,0.001]
[1733841692481,0.00012,97547.0,97546.0,0.001]
[1733841692880,0.00012,97547.0,97545.0,0.051229]
[1733841693088,0.00112,97547.0,97545.0,0.051229]
[1733841693282,0.00112,97547.0,97533.0,0.3608]
[1733841693484,0.00012,97547.0,97544.0,0.05123]
[1733841693685,0.00012,97534.0,97533.0,0.412036]
[1733841694886,0.00222189,97534.0,97533.0,0.412036]
[1733841695684,0.00422189,97534.0,97533.0,0.412036]
[1733841695890,0.00622189,97534.0,97533.0,0.412036]
[1733841696893,0.36702189,97534.0,97515.0,0.3608]
[1733841697086,0.36702189,97534.0,97514.0,0.00153839]
[1733841697087,0.3608,97526.0,97514.0,0.00153839]
[1733841697387,0.00012,97515.0,97492.0,0.3608]
[1733841697592,0.00012,97515.0,97511.0,0.051247]
[1733841697890,0.00012,97515.0,97492.0,0.3608]
[1733841697891,0.00012,97515.0,97506.0,0.05125]
[1733841698087,0.00012,97515.0,97507.0,0.05132937]
[1733841698287,0.00012,97508.0,97507.0,0.05132937]
[1733841698591,0.00610189,97534.0,97533.0,0.051236]
[1733841698892,0.00610189,97534.0,97533.0,0.051296]
[1733841699094,0.00010189,97534.0,97533.0,0.051296]
[1733841699682,0.00410189,97534.0,97533.0,0.051296]
[1733841700194,0.00010189,97534.0,97533.0,0.051296]
[1733841700386,0.00410189,97534.0,97533.0,0.051296]
[1733841701087,0.00510189,97534.0,97533.0,0.051296]
[1733841701288,0.00012,97547.0,97546.0,0.051229]
[1733841701688,0.00012,97547.0,97546.0,0.051289]
[1733841702290,0.00024269,97547.0,97546.0,0.051289]
[1733841703286,0.00124269,97547.0,97546.0,0.051289]
[1733841703794,0.00024269,97547.0,97546.0,6e-05]
[1733841705997,0.00124269,97547.0,97546.0,6e-05]
[1733841706494,0.00024269,97547.0,97546.0,6e-05]
[1733841708185,0.02041454,97566.0,97565.0,0.051219]
[1733841708593,0.051218,97568.0,97565.0,0.051279]
[1733841708790,0.23385686,97570.0,97569.0,0.051217]
[1733841708991,0.3608,97572.0,97570.0,0.051216]
[1733841709193,7.949e-05,97571.0,97570.0,0.051216]
[1733841710287,7.949e-05,97571.0,97570.0,0.052216]
[1733841710900,0.00107949,97571.0,97570.0,0.052216]
[1733841711901,0.00107949,97571.0,97570.0,0.001]
[1733841712206,0.36187949,97571.0,97570.0,0.001]
[1733841712402,0.004,97566.0,97550.0,0.18134761]
[1733841712699,0.00012,97551.0,97549.0,0.051228]
[1733841713100,0.3608,97552.0,97549.0,0.051228]
[1733841713101,0.00012,97550.0,97549.0,0.051228]
[1733841714198,0.00012,97550.0,97549.0,0.23257561]
[1733841714396,0.00012,97550.0,97549.0,0.18134761]
[1733841714598,0.051229,97547.0,97545.0,0.00153787]
[1733841714894,0.051349,97546.0,97545.0,0.00153787]
[1733841715399,0.00012,97546.0,97545.0,0.05276787]
[1733841715798,0.00012,97546.0,97545.0,0.00153787]
[1733841716197,0.00012,97546.0,97522.0,0.3608]
[1733841716198,0.35145983,97546.0,97539.0,0.18372362]
[1733841716397,0.35145983,97546.0,97532.0,0.24179682]
[1733841716398,0.051237,97532.0,97531.0,0.03152362]
[1733841716597,0.051237,97532.0,97505.0,0.36423374]
[1733841716598,0.051244,97518.0,97511.0,0.24179682]
[1733841716796,0.3608,97516.0,97507.0,0.24187619]
[1733841717008,0.412049,97508.0,97507.0,7.937e-05]
[1733841717200,0.412169,97508.0,97507.0,7.937e-05]
[1733841718001,0.36092,97508.0,97507.0,7.937e-05]
[1733841718199,0.00012,97508.0,97507.0,7.937e-05]
[1733841719304,0.00112,97508.0,97507.0,7.937e-05]
[1733841719996,0.00012,97508.0,97507.0,7.937e-05]
[1733841720196,0.00012,97508.0,97507.0,0.00107937]
[1733841720404,0.23338379,97520.0,97507.0,0.00107937]
[1733841720608,0.23338379,97520.0,97519.0,0.051243]
[1733841720804,0.23338379,97529.0,97524.0,0.051241]
[1733841721005,0.23338379,97529.0,97514.0,0.3608]
[1733841721304,0.00012,97515.0,97514.0,0.3608]
[1733841721509,0.00012,97515.0,97514.0,0.412046]
[1733841722402,0.00011487,97532.0,97514.0,0.3608]
[1733841722598,0.00011487,97532.0,97531.0,0.051237]
[1733841722797,0.00011487,97532.0,97531.0,0.412037]
[1733841722997,0.02042219,97545.0,97544.0,0.05123]
[1733841723402,0.00048,97557.0,97556.0,0.051224]
[1733841723800,0.00048,97557.0,97556.0,0.051284]
[1733841724104,0.00060752,97557.0,97556.0,0.051284]
[1733841724509,0.00060752,97557.0,97556.0,6e-05]
[1733841725011,0.30060752,97557.0,97556.0,6e-05]
[1733841725200,0.30160752,97557.0,97556.0,6e-05]
[1733841725398,0.00160752,97557.0,97556.0,6e-05]
[1733841725602,0.09331619,97557.0,97556.0,6e-05]
[1733841725808,0.05283052,97557.0,97556.0,6e-05]
[1733841726000,0.35283052,97557.0,97556.0,6e-05]
[1733841726710,0.05283052,97557.0,97556.0,6e-05]
[1733841727202,0.17572893,97557.0,97556.0,6e-05]
[1733841727602,0.17472893,97557.0,97556.0,6e-05]
[1733841727807,0.05483052,97557.0,97556.0,6e-05]
[1733841728196,0.05383052,97557.0,97556.0,6e-05]
[1733841728510,0.05483052,97557.0,97556.0,0.00106]
[1733841729599,0.00360752,97557.0,97556.0,0.00106]
[1733841729914,0.12596938,97557.0,97556.0,0.00106]
[1733841730108,0.00560752,97557.0,97556.0,0.00106]
[1733841730799,0.00160752,97557.0,97556.0,0.00106]
[1733841730999,0.00260752,97557.0,97556.0,6e-05]
[1733841731205,0.00360752,97557.0,97556.0,0.00106]
[1733841731606,0.00260752,97557.0,97556.0,6e-05]
[1733841731814,0.00360752,97557.0,97556.0,0.052284]
[1733841732312,0.00360752,97557.0,97556.0,0.08560248]
[1733841732612,0.34504001,97575.0,97562.0,0.051221]
[1733841732797,0.34504001,97575.0,97556.0,0.03337848]
[1733841732798,0.09177626,97578.0,97574.0,0.3608]
[1733841733006,0.09177626,97583.0,97574.0,0.36086]
[1733841733200,0.00052001,97586.0,97574.0,0.36086]
[1733841733201,0.00052001,97586.0,97581.0,0.05121]
[1733841733401,0.00052001,97586.0,97585.0,0.051209]
[1733841733702,0.00012848,97586.0,97585.0,6e-05]
[1733841735206,0.36092848,97586.0,97585.0,6e-05]
[1733841735503,0.36092848,97586.0,97585.0,1e-06]
[1733841735504,0.66092848,97586.0,97585.0,1e-06]
[1733841735704,0.66792848,97586.0,97585.0,0.001001]
[1733841736014,0.051228,97549.0,97538.0,0.051233]
[1733841736203,0.051228,97549.0,97526.0,0.3608]
[1733841736204,0.23338379,97548.0,97539.0,0.01281703]
[1733841736400,0.00012,97539.0,97518.0,0.24179682]
[1733841736716,0.00012,97539.0,97499.0,6e-05]
[1733841736717,0.051256,97495.0,97494.0,0.30556068]
[1733841737012,0.772976,97495.0,97494.0,0.01751118]
[1733841737405,0.051258,97492.0,97491.0,0.37868167]
[1733841737605,0.20419885,97492.0,97491.0,0.37868167]
[1733841737810,0.00022823,97492.0,97491.0,0.37868167]
[1733841738116,0.12226219,97498.0,97497.0,0.051255]
[1733841738309,0.12226219,97512.0,97491.0,0.73948167]
[1733841738509,0.3608,97513.0,97503.0,0.051252]
[1733841738705,0.051253,97501.0,97497.0,6e-05]
[1733841738905,0.3608,97505.0,97497.0,6e-05]
[1733841739219,0.051254,97499.0,97497.0,6e-05]
[1733841740416,0.3608,97503.0,97497.0,6e-05]
[1733841740603,0.051254,97499.0,97497.0,6e-05]
[1733841740807,0.12211203,97498.0,97497.0,6e-05]
[1733841741204,0.12211203,97502.0,97497.0,6e-05]
[1733841741515,0.3608,97503.0,97501.0,6e-05]
[1733841742013,0.412052,97503.0,97502.0,6e-05]
[1733841743515,0.414052,97503.0,97502.0,6e-05]
[1733841743718,0.3628,97503.0,97502.0,6e-05]
[1733841744014,0.23374107,97507.0,97506.0,0.05125]
[1733841744217,0.3608,97511.0,97502.0,6e-05]
[1733841744421,0.3608,97511.0,97509.0,0.051248]
[1733841744606,0.3608,97511.0,97506.0,6e-05]
[1733841744607,0.23374107,97516.0,97510.0,6e-05]
[1733841744807,0.3608,97521.0,97519.0,0.051243]
[1733841744808,0.23374107,97520.0,97519.0,0.051243]
[1733841745008,9.102e-05,97520.0,97519.0,0.051243]
[1733841745213,9.102e-05,97520.0,97519.0,0.051303]
[1733841746013,0.23374107,97529.0,97519.0,6e-05]
[1733841746317,0.23374107,97529.0,97528.0,6e-05]
[1733841746511,0.3608,97532.0,97530.0,0.051238]
[1733841746712,0.23374107,97538.0,97528.0,6e-05]
[1733841746713,0.23374107,97538.0,97537.0,0.051234]
[1733841747023,0.23374107,97560.0,97537.0,0.66086]
[1733841747211,0.23374107,97570.0,97569.0,0.051217]
[1733841747520,0.3608,97576.0,97575.0,0.051214]
[1733841747917,0.3608,97576.0,97575.0,0.051274]
[1733841748221,0.36091975,97576.0,97575.0,0.051274]
[1733841748612,0.36091975,97576.0,97575.0,6e-05]
[1733841749019,0.66091975,97576.0,97533.0,0.3608]
[1733841749313,0.3608,97548.0,97538.0,0.051233]
[1733841749514,9e-05,97547.0,97525.0,0.3608]
[1733841749709,0.23374107,97535.0,97525.0,0.3608]
[1733841749915,0.23374107,97535.0,97505.0,0.00153843]
[1733841749916,0.00012,97526.0,97505.0,0.00153843]
[1733841750214,0.00012,97521.0,97515.0,0.051245]
[1733841751119,0.38267901,97527.0,97515.0,0.051245]
[1733841751424,0.382159,97527.0,97526.0,6e-05]
[1733841751626,0.33092,97527.0,97526.0,6e-05]
[1733841753115,0.23374107,97535.0,97526.0,6e-05]
[1733841753521,0.23374107,97535.0,97534.0,6e-05]
[1733841753824,0.00052001,97536.0,97534.0,6e-05]
[1733841754019,0.23374107,97544.0,97534.0,6e-05]
[1733841754323,0.23374107,97544.0,97527.0,0.051239]
[1733841754324,0.23374107,97544.0,97535.0,6e-05]
[1733841754819,0.28497207,97544.0,97535.0,6e-05]
[1733841755021,0.051231,97542.0,97540.0,6e-05]
[1733841755415,0.23374107,97544.0,97540.0,6e-05]
[1733841755733,0.39488847,97594.0,97568.0,0.051218]
[1733841756026,0.4608,97600.0,97549.0,0.0399]
[1733841756027,0.10052001,97600.0,97598.0,0.051201]
[1733841756229,0.1,97600.0,97598.0,0.051201]
[1733841756421,0.1,97600.0,97599.0,6e-05]
[1733841756616,0.10010042,97600.0,97599.0,6e-05]
[1733841757016,0.10522337,97600.0,97599.0,6e-05]
[1733841757229,0.3608,97629.0,97599.0,6e-05]
[1733841757230,0.3608,97629.0,97626.0,0.051187]
[1733841757424,0.3608,97629.0,97609.0,0.051196]
[1733841757621,0.3608,97629.0,97628.0,6e-05]
[1733841758019,0.38128827,97629.0,97628.0,6e-05]
[1733841758217,0.3813774,97629.0,97628.0,6e-05]
[1733841758831,0.3813774,97629.0,97598.0,0.002]
[1733841758832,0.6813774,97629.0,97598.0,0.002]
[1733841759127,0.3608,97599.0,97598.0,0.001]
[1733841759324,0.3608,97599.0,97583.0,0.051209]
[1733841759325,0.36089692,97599.0,97583.0,0.051209]
[1733841759521,0.3608,97584.0,97573.0,9.538e-05]
[1733841759719,0.23374107,97583.0,97573.0,9.538e-05]
[1733841759918,0.051211,97582.0,97573.0,9.538e-05]
[1733841760128,0.3608,97574.0,97573.0,9.538e-05]
[1733841760326,0.412014,97574.0,97573.0,9.538e-05]
[1733841761027,0.3608,97574.0,97573.0,9.538e-05]
[1733841761236,0.41212994,97574.0,97573.0,9.538e-05]
[1733841761727,0.36091594,97574.0,97573.0,9.538e-05]
[1733841763226,0.36091594,97574.0,97573.0,0.00109538]
[1733841763434,0.66091594,97574.0,97556.0,0.00153767]
[1733841763637,0.59454107,97566.0,97556.0,0.05276167]
[1733841763837,0.59454107,97566.0,97563.0,0.05122]
[1733841764334,0.59454107,97566.0,97556.0,0.00153767]
[1733841764727,0.3608,97558.0,97556.0,0.00153767]
[1733841766132,0.3608,97558.0,97556.0,0.00453767]
[1733841766637,0.051223,97557.0,97556.0,0.00453767]
[1733841766845,0.051223,97557.0,97556.0,0.004]
[1733841767134,0.05129874,97557.0,97556.0,0.001]
[1733841767547,0.30007574,97557.0,97556.0,0.001]
[1733841767835,0.05123,97545.0,97529.0,0.05135896]
[1733841768024,0.23374107,97539.0,97529.0,0.00012096]
[1733841768223,0.00012,97530.0,97529.0,0.00012096]
[1733841768431,0.051358,97530.0,97529.0,0.00012096]
[1733841770028,0.00012,97530.0,97529.0,0.00712096]
[1733841770536,0.051358,97530.0,97529.0,0.00712096]
[1733841770941,0.00012,97530.0,97529.0,0.00712096]
[1733841771531,0.00012,97530.0,97529.0,0.01956727]
[1733841771839,0.00012,97530.0,97529.0,0.00712096]
[1733841773735,0.051358,97530.0,97529.0,0.00712096]
[1733841773931,0.00012,97530.0,97529.0,0.00712096]
[1733841775048,0.00012,97530.0,97529.0,0.01957342]
[1733841775342,0.00012,97530.0,97529.0,0.03949735]
[1733841776039,0.00023002,97530.0,97529.0,0.01957342]
[1733841776433,0.00023002,97530.0,97504.0,0.00153812]
[1733841776434,0.051239,97528.0,97504.0,0.00153812]
[1733841776634,0.23374107,97514.0,97506.0,0.05125]
[1733841776835,0.23374107,97514.0,97508.0,0.051249]
[1733841777037,0.23374107,97514.0,97512.0,0.412047]
[1733841777235,0.23374107,97514.0,97513.0,0.04352606]
[1733841777537,0.00056001,97520.0,97513.0,0.04352606]
[1733841777738,0.05180301,97520.0,97514.0,0.04352606]
[1733841778037,0.05180301,97520.0,97509.0,0.051249]
[1733841778038,0.05180301,97520.0,97519.0,6e-05]
[1733841778233,0.051243,97520.0,97519.0,6e-05]
[1733841779042,0.051243,97520.0,97519.0,0.00326437]
[1733841779244,0.051243,97520.0,97519.0,0.04352054]
[1733841779445,0.051243,97520.0,97519.0,0.00326437]
[1733841779945,0.3608,97521.0,97519.0,0.04337899]
[1733841780243,0.3608,97521.0,97520.0,6e-05]
[1733841780446,0.002,97528.0,97520.0,0.36086]
[1733841780954,0.051243,97520.0,97519.0,0.001]
[1733841781139,0.003,97520.0,97499.0,0.36233843]
[1733841781343,0.23674107,97520.0,97519.0,0.051243]
[1733841781645,0.23674107,97520.0,97519.0,0.0913433]
[1733841781646,0.003,97520.0,97519.0,0.0913433]
[1733841782042,0.003,97520.0,97519.0,0.051243]
[1733841782548,0.003,97520.0,97519.0,0.0913157]
[1733841782736,0.00011002,97530.0,97529.0,0.051238]
[1733841782938,0.1037,97556.0,97529.0,0.051238]
[1733841782939,0.24657607,97560.0,97529.0,0.7616727]
[1733841783237,0.59454107,97560.0,97546.0,0.3608]
[1733841783539,0.59454107,97560.0,97547.0,0.04327635]
[1733841783741,0.3608,97552.0,97548.0,0.00320365]
[1733841784042,0.051237,97531.0,97530.0,0.00153799]
[1733841784243,0.412037,97531.0,97530.0,0.00153799]
[1733841784440,0.41224214,97531.0,97530.0,0.00153799]
[1733841784943,0.41224214,97531.0,97530.0,0.00014546]
[1733841785142,0.051243,97520.0,97519.0,0.001]
[1733841785338,0.412043,97520.0,97519.0,0.001]
[1733841785551,0.412163,97520.0,97519.0,0.001]
[1733841785851,0.00012,97520.0,97519.0,0.001]
[1733841786036,0.00012,97520.0,97519.0,0.052243]
[1733841786455,8.514e-05,97531.0,97519.0,0.3608]
[1733841786654,8.514e-05,97531.0,97530.0,0.412038]
[1733841786860,8.514e-05,97531.0,97530.0,6e-05]
[1733841788359,8.514e-05,97531.0,97530.0,0.0121843]
[1733841790355,8.514e-05,97531.0,97530.0,0.0151843]
[1733841790955,8.514e-05,97531.0,97530.0,0.0181843]
[1733841791161,0.36088514,97531.0,97530.0,0.0181843]
[1733841791454,0.36088514,97531.0,97530.0,0.0151843]
[1733841791660,0.36088514,97531.0,97530.0,0.0161843]
[1733841792052,0.36088514,97531.0,97530.0,0.0151843]
[1733841792255,0.36088514,97531.0,97530.0,0.01517203]
[1733841793351,0.36088514,97531.0,97491.0,0.3608]
[1733841793551,0.3608,97509.0,97491.0,0.3608]
[1733841793748,0.36092,97501.0,97487.0,0.36156]
[1733841793960,0.36092,97501.0,97472.0,0.5641849]
[1733841793961,0.36092,97501.0,97500.0,0.13879222]
[1733841794158,0.412173,97501.0,97500.0,0.13879222]
[1733841794460,0.412173,97501.0,97500.0,0.1]
[1733841794957,0.56463145,97501.0,97500.0,0.1]
[1733841795159,0.46203876,97501.0,97500.0,0.1]
[1733841795361,0.51413952,97501.0,97500.0,0.1]
[1733841795557,0.36092,97501.0,97500.0,0.106]
[1733841796554,0.00012,97501.0,97500.0,0.106]